[Event "Late-Titled-Tuesday-Blitz-September-19-2023"]
[Site "Chess.com"]
[Date "2023.09.19"]
[Round "2"]
[White "FrancescoSorcinelli"]
[Black "MelihKaanCan"]
[Result "1-0"]
[WhiteElo "2142"]
[BlackElo "2397"]
[TimeControl "180+1"]
[EndTime "14:17:50 PDT"]
[Termination "FrancescoSorcinelli won on time"]

1. Nf3 {[%clk 0:02:50.7]} 1... Nf6 {[%clk 0:02:59.2]} 2. g3 {[%clk 0:02:50.5]}
2... b6 {[%clk 0:02:59.7]} 3. Bg2 {[%clk 0:02:47.9]} 3... Bb7 {[%clk 0:03:00.3]}
4. O-O {[%clk 0:02:47.8]} 4... e6 {[%clk 0:03:00.4]} 5. d4 {[%clk 0:02:45.8]}
5... Be7 {[%clk 0:03:00.5]} 6. c4 {[%clk 0:02:43.6]} 6... O-O {[%clk 0:03:00]}
7. Nc3 {[%clk 0:02:43.9]} 7... Ne4 {[%clk 0:02:58]} 8. Qc2 {[%clk 0:02:31.9]}
8... Nxc3 {[%clk 0:02:55.3]} 9. bxc3 {[%clk 0:02:28.3]} 9... d6 {[%clk
0:02:51.6]} 10. e4 {[%clk 0:02:27.5]} 10... Nd7 {[%clk 0:02:46.6]} 11. a4 {[%clk
0:02:24]} 11... a5 {[%clk 0:02:44.9]} 12. Bf4 {[%clk 0:02:09.3]} 12... Bf6
{[%clk 0:02:34]} 13. Rad1 {[%clk 0:01:59.6]} 13... Qc8 {[%clk 0:02:33.2]} 14. h4
{[%clk 0:00:57.9]} 14... h6 {[%clk 0:02:12.8]} 15. Rfe1 {[%clk 0:00:54.9]} 15...
e5 {[%clk 0:02:12]} 16. Be3 {[%clk 0:00:54.4]} 16... Re8 {[%clk 0:02:08.3]} 17.
Nd2 {[%clk 0:00:52.3]} 17... Nf8 {[%clk 0:01:53.3]} 18. Kh2 {[%clk 0:00:37.4]}
18... Bc6 {[%clk 0:01:52.7]} 19. Bh3 {[%clk 0:00:33.5]} 19... Bd7 {[%clk
0:01:52.8]} 20. Bxd7 {[%clk 0:00:30.2]} 20... Nxd7 {[%clk 0:01:51.7]} 21. d5
{[%clk 0:00:29.8]} 21... Nf8 {[%clk 0:01:43.8]} 22. h5 {[%clk 0:00:29.9]} 22...
Kh7 {[%clk 0:01:41.7]} 23. Qd3 {[%clk 0:00:29.5]} 23... Bg5 {[%clk 0:01:32.5]}
24. Qe2 {[%clk 0:00:27.2]} 24... Bxe3 {[%clk 0:01:30.6]} 25. fxe3 {[%clk
0:00:27.4]} 25... Nd7 {[%clk 0:01:19.7]} 26. Rf1 {[%clk 0:00:27.2]} 26... f6
{[%clk 0:01:20]} 27. Nf3 {[%clk 0:00:26]} 27... Nc5 {[%clk 0:01:18.3]} 28. Nh4
{[%clk 0:00:25.7]} 28... Nxe4 {[%clk 0:00:56.2]} 29. Nf5 {[%clk 0:00:23.1]}
29... Ng5 {[%clk 0:00:48.1]} 30. Qg4 {[%clk 0:00:21.2]} 30... e4 {[%clk
0:00:41.1]} 31. Rd4 {[%clk 0:00:20.5]} 31... Re5 {[%clk 0:00:41]} 32. Rf4 {[%clk
0:00:19.8]} 32... Qd7 {[%clk 0:00:35.4]} 33. Rdxe4 {[%clk 0:00:19.4]} 33... Rxe4
{[%clk 0:00:17.1]} 34. Rxe4 {[%clk 0:00:19.7]} 34... Nxe4 {[%clk 0:00:18]} 35.
Qxe4 {[%clk 0:00:20.1]} 35... Kg8 {[%clk 0:00:17.1]} 36. Qg4 {[%clk 0:00:19.8]}
36... Kh8 {[%clk 0:00:13.5]} 37. e4 {[%clk 0:00:19.3]} 37... Re8 {[%clk
0:00:12.9]} 38. Qg6 {[%clk 0:00:15.4]} 38... Rxe4 {[%clk 0:00:11.7]} 39. Nxh6
{[%clk 0:00:14.3]} 39... Re2+ {[%clk 0:00:10]} 40. Kg1 {[%clk 0:00:13.9]} 40...
gxh6 {[%clk 0:00:09.9]} 41. Qxh6+ {[%clk 0:00:14.2]} 41... Kg8 {[%clk
0:00:08.9]} 42. Qxf6 {[%clk 0:00:11.1]} 42... Qg7 {[%clk 0:00:04.5]} 43. Qd8+
{[%clk 0:00:08.9]} 43... Kh7 {[%clk 0:00:03.5]} 44. Qh4 {[%clk 0:00:09]} 44...
Re1+ {[%clk 0:00:03.3]} 45. Kf2 {[%clk 0:00:08.9]} 45... Re5 {[%clk 0:00:04.2]}
46. g4 {[%clk 0:00:06.1]} 46... Qf7+ {[%clk 0:00:03.8]} 47. Kg2 {[%clk
0:00:05.2]} 47... Re2+ {[%clk 0:00:04]} 48. Kg1 {[%clk 0:00:05.5]} 48... Qg7
{[%clk 0:00:01.9]} 49. g5 {[%clk 0:00:05.2]} 49... Qxc3 {[%clk 0:00:01.4]} 50.
g6+ {[%clk 0:00:05.1]} 1-0

[Event "Late-Titled-Tuesday-Blitz-September-19-2023"]
[Site "Chess.com"]
[Date "2023.09.19"]
[Round "2"]
[White "Korchmar_Vasiliy"]
[Black "Sjakkerntobi"]
[Result "1-0"]
[WhiteElo "2752"]
[BlackElo "2518"]
[TimeControl "180+1"]
[EndTime "14:17:51 PDT"]
[Termination "Korchmar_Vasiliy won by checkmate"]

1. e4 {[%clk 0:03:00.9]} 1... e6 {[%clk 0:03:00.1]} 2. d4 {[%clk 0:03:00.8]}
2... d5 {[%clk 0:03:00.7]} 3. e5 {[%clk 0:03:01.2]} 3... c5 {[%clk 0:03:00.9]}
4. c3 {[%clk 0:03:01.8]} 4... Qb6 {[%clk 0:02:57.9]} 5. Nf3 {[%clk 0:03:00.2]}
5... Bd7 {[%clk 0:02:57.9]} 6. Be2 {[%clk 0:02:58.2]} 6... Bb5 {[%clk
0:02:57.7]} 7. O-O {[%clk 0:02:42.2]} 7... Bxe2 {[%clk 0:02:56.5]} 8. Qxe2
{[%clk 0:02:43.1]} 8... Nc6 {[%clk 0:02:56.9]} 9. dxc5 {[%clk 0:02:28.1]} 9...
Bxc5 {[%clk 0:02:57.8]} 10. b4 {[%clk 0:02:27.4]} 10... Bf8 {[%clk 0:02:57.1]}
11. a4 {[%clk 0:02:14.3]} 11... Nge7 {[%clk 0:02:54.5]} 12. a5 {[%clk
0:02:09.5]} 12... Qc7 {[%clk 0:02:52.4]} 13. Na3 {[%clk 0:02:08.2]} 13... a6
{[%clk 0:02:52.3]} 14. Be3 {[%clk 0:02:02.6]} 14... Nxe5 {[%clk 0:02:48.2]} 15.
Bb6 {[%clk 0:01:45.5]} 15... Nxf3+ {[%clk 0:02:47.8]} 16. Qxf3 {[%clk
0:01:46.3]} 16... Qc6 {[%clk 0:02:45.7]} 17. Rab1 {[%clk 0:00:53.2]} 17... Ng6
{[%clk 0:02:42.3]} 18. b5 {[%clk 0:00:52.9]} 18... axb5 {[%clk 0:02:43.1]} 19.
Nxb5 {[%clk 0:00:52.9]} 19... Bd6 {[%clk 0:02:32.9]} 20. c4 {[%clk 0:00:38.3]}
20... O-O {[%clk 0:02:24]} 21. cxd5 {[%clk 0:00:38.4]} 21... exd5 {[%clk
0:02:23.3]} 22. Rfc1 {[%clk 0:00:38.9]} 22... Qd7 {[%clk 0:02:23.4]} 23. Nxd6
{[%clk 0:00:39.2]} 23... Qxd6 {[%clk 0:02:23.8]} 24. Bc5 {[%clk 0:00:39.9]}
24... Qe6 {[%clk 0:02:19.1]} 25. Bxf8 {[%clk 0:00:39.7]} 25... Nxf8 {[%clk
0:02:19.3]} 26. Rxb7 {[%clk 0:00:31.6]} 26... Rxa5 {[%clk 0:02:16.9]} 27. Rb8
{[%clk 0:00:30.7]} 27... Qe5 {[%clk 0:02:10.3]} 28. Qb3 {[%clk 0:00:20.3]} 28...
Ra1 {[%clk 0:02:00]} 29. Rxa1 {[%clk 0:00:04.3]} 29... Qxa1+ {[%clk 0:02:00.9]}
30. Qb1 {[%clk 0:00:04.8]} 30... Qe5 {[%clk 0:01:37.5]} 31. g3 {[%clk
0:00:04.4]} 31... g6 {[%clk 0:01:37.1]} 32. Qb5 {[%clk 0:00:03.9]} 32... Kg7
{[%clk 0:01:35.7]} 33. Qb2 {[%clk 0:00:03.1]} 33... Qxb2 {[%clk 0:01:35.4]} 34.
Rxb2 {[%clk 0:00:04]} 34... Ne6 {[%clk 0:01:36.2]} 35. Rb7 {[%clk 0:00:02.2]}
35... Kf6 {[%clk 0:01:36.3]} 36. Rd7 {[%clk 0:00:02.7]} 36... d4 {[%clk
0:01:36.5]} 37. Kg2 {[%clk 0:00:02.9]} 37... h5 {[%clk 0:01:36.8]} 38. f4 {[%clk
0:00:02.8]} 38... Kg7 {[%clk 0:01:34.9]} 39. Kf3 {[%clk 0:00:02.5]} 39... Kf8
{[%clk 0:01:34.7]} 40. h3 {[%clk 0:00:02.7]} 40... Ke8 {[%clk 0:01:35.3]} 41.
Rd5 {[%clk 0:00:02.6]} 41... Ke7 {[%clk 0:01:35.2]} 42. g4 {[%clk 0:00:03]}
42... hxg4+ {[%clk 0:01:35.4]} 43. hxg4 {[%clk 0:00:03.9]} 43... Kf6 {[%clk
0:01:34.3]} 44. Rd6 {[%clk 0:00:03.2]} 44... Ke7 {[%clk 0:01:33.8]} 45. Rd5
{[%clk 0:00:03.7]} 45... Kf6 {[%clk 0:01:34.2]} 46. Rd7 {[%clk 0:00:04.1]} 46...
Kg7 {[%clk 0:01:30.6]} 47. Kg3 {[%clk 0:00:03.6]} 47... Kf8 {[%clk 0:01:24.9]}
48. f5 {[%clk 0:00:03.4]} 48... gxf5 {[%clk 0:01:19]} 49. gxf5 {[%clk
0:00:04.3]} 49... Ng7 {[%clk 0:01:19.9]} 50. Kg4 {[%clk 0:00:03.5]} 50... Ne8
{[%clk 0:01:11.2]} 51. Rxd4 {[%clk 0:00:03.6]} 51... Kg7 {[%clk 0:01:10.1]} 52.
Ra4 {[%clk 0:00:03.1]} 52... Nf6+ {[%clk 0:01:10.3]} 53. Kg5 {[%clk 0:00:03.2]}
53... Nd5 {[%clk 0:01:08.4]} 54. Ra7 {[%clk 0:00:02.6]} 54... Nf6 {[%clk
0:01:08.2]} 55. Rb7 {[%clk 0:00:02.3]} 55... Ne4+ {[%clk 0:01:08.1]} 56. Kf4
{[%clk 0:00:02.3]} 56... Nf6 {[%clk 0:01:08.5]} 57. Ke5 {[%clk 0:00:02.8]} 57...
Ng4+ {[%clk 0:01:08.4]} 58. Ke4 {[%clk 0:00:02.8]} 58... Nf6+ {[%clk 0:01:08.7]}
59. Kf4 {[%clk 0:00:03]} 59... Nd5+ {[%clk 0:01:08.8]} 60. Kg5 {[%clk
0:00:02.3]} 60... Nf6 {[%clk 0:01:09.3]} 61. Rb1 {[%clk 0:00:02]} 61... Ne4+
{[%clk 0:01:09.6]} 62. Kf4 {[%clk 0:00:02.3]} 62... Nd6 {[%clk 0:01:09.1]} 63.
Rg1+ {[%clk 0:00:02.3]} 63... Kf6 {[%clk 0:01:09.4]} 64. Ra1 {[%clk 0:00:01.7]}
64... Kg7 {[%clk 0:01:07.3]} 65. Ra6 {[%clk 0:00:02.6]} 65... Ne8 {[%clk
0:01:07.4]} 66. Kg5 {[%clk 0:00:02.7]} 66... Kh7 {[%clk 0:01:02.5]} 67. f6
{[%clk 0:00:02.6]} 67... Nc7 {[%clk 0:00:55]} 68. Ra7 {[%clk 0:00:02.8]} 68...
Ne6+ {[%clk 0:00:55.6]} 69. Kh5 {[%clk 0:00:03]} 69... Kg8 {[%clk 0:00:45.3]}
70. Kh6 {[%clk 0:00:03.1]} 70... Nf8 {[%clk 0:00:45.9]} 71. Ra8 {[%clk
0:00:03.2]} 71... Kh8 {[%clk 0:00:45.1]} 72. Rxf8# {[%clk 0:00:04.1]} 1-0

[Event "Late-Titled-Tuesday-Blitz-September-19-2023"]
[Site "Chess.com"]
[Date "2023.09.19"]
[Round "2"]
[White "Njal28"]
[Black "dawid498"]
[Result "1-0"]
[WhiteElo "3112"]
[BlackElo "2641"]
[TimeControl "180+1"]
[EndTime "14:17:52 PDT"]
[Termination "Njal28 won by resignation"]

1. d4 {[%clk 0:03:00.9]} 1... Nf6 {[%clk 0:02:59.9]} 2. c4 {[%clk 0:03:01.6]}
2... g6 {[%clk 0:03:00.4]} 3. Nc3 {[%clk 0:03:02.3]} 3... Bg7 {[%clk 0:03:01.1]}
4. e4 {[%clk 0:03:02.7]} 4... O-O {[%clk 0:03:02]} 5. Be2 {[%clk 0:03:01.7]}
5... d6 {[%clk 0:03:02.3]} 6. Nf3 {[%clk 0:03:02.4]} 6... e5 {[%clk 0:03:01.8]}
7. O-O {[%clk 0:03:03.1]} 7... h6 {[%clk 0:03:02.5]} 8. Re1 {[%clk 0:03:02.9]}
8... Nbd7 {[%clk 0:03:02.5]} 9. Rb1 {[%clk 0:03:02.3]} 9... Re8 {[%clk
0:03:02.2]} 10. d5 {[%clk 0:02:57.2]} 10... Nc5 {[%clk 0:02:42.4]} 11. Nd2
{[%clk 0:02:57.2]} 11... a5 {[%clk 0:02:43.1]} 12. b3 {[%clk 0:02:57.2]} 12...
Nh7 {[%clk 0:02:40.4]} 13. a3 {[%clk 0:02:56]} 13... f5 {[%clk 0:02:40.4]} 14.
b4 {[%clk 0:02:54.4]} 14... Na6 {[%clk 0:02:21.8]} 15. Qc2 {[%clk 0:02:25.9]}
15... Nf6 {[%clk 0:02:11.3]} 16. Bd3 {[%clk 0:02:19.5]} 16... f4 {[%clk
0:02:08]} 17. c5 {[%clk 0:01:34.6]} 17... Re7 {[%clk 0:01:26.7]} 18. cxd6 {[%clk
0:01:24.9]} 18... cxd6 {[%clk 0:01:27.6]} 19. Nc4 {[%clk 0:01:24.5]} 19... axb4
{[%clk 0:01:27.3]} 20. axb4 {[%clk 0:01:23.1]} 20... Ne8 {[%clk 0:01:19.2]} 21.
Ba3 {[%clk 0:01:11.6]} 21... f3 {[%clk 0:00:58.5]} 22. b5 {[%clk 0:01:06.6]}
22... Nc5 {[%clk 0:00:58.2]} 23. Bxc5 {[%clk 0:01:06.4]} 23... dxc5 {[%clk
0:00:59.1]} 24. g3 {[%clk 0:01:03.6]} 24... Nd6 {[%clk 0:00:45.9]} 25. Ra1
{[%clk 0:01:02.7]} 25... Rb8 {[%clk 0:00:24.4]} 26. b6 {[%clk 0:00:57.6]} 26...
Kh7 {[%clk 0:00:11.3]} 27. Nxd6 {[%clk 0:00:56.5]} 27... Qxd6 {[%clk 0:00:12.2]}
28. Nb5 {[%clk 0:00:56.8]} 28... Qxb6 {[%clk 0:00:12]} 29. Reb1 {[%clk 0:00:52]}
29... Qf6 {[%clk 0:00:11.8]} 30. Qxc5 {[%clk 0:00:50.7]} 30... Bh3 {[%clk
0:00:09.7]} 31. Qd6 {[%clk 0:00:41.7]} 31... Qf8 {[%clk 0:00:08.6]} 32. Qb6
{[%clk 0:00:31.3]} 32... Bg2 {[%clk 0:00:06.6]} 33. Bf1 {[%clk 0:00:29.3]} 33...
Bxf1 {[%clk 0:00:06.3]} 34. Rxf1 {[%clk 0:00:30.1]} 34... Rc8 {[%clk 0:00:03.6]}
35. Qe3 {[%clk 0:00:28.1]} 35... Qf6 {[%clk 0:00:02.8]} 36. Ra3 {[%clk
0:00:24.7]} 36... Rf7 {[%clk 0:00:02.9]} 37. Rd1 {[%clk 0:00:20.8]} 37... h5
{[%clk 0:00:02.9]} 38. d6 {[%clk 0:00:20.6]} 38... Bh6 {[%clk 0:00:03.5]} 39.
Qb3 {[%clk 0:00:19.7]} 39... Rd8 {[%clk 0:00:03.5]} 40. Qd5 {[%clk 0:00:03.7]}
40... Rff8 {[%clk 0:00:04]} 41. Ra7 {[%clk 0:00:04]} 41... h4 {[%clk 0:00:04.2]}
42. Rxb7+ {[%clk 0:00:04.9]} 42... Kh8 {[%clk 0:00:04.7]} 43. Qc6 {[%clk
0:00:03.1]} 43... hxg3 {[%clk 0:00:05]} 44. hxg3 {[%clk 0:00:04]} 44... Bg7
{[%clk 0:00:05]} 45. Qc7 {[%clk 0:00:04.4]} 45... Rg8 {[%clk 0:00:05.5]} 46. Qe7
{[%clk 0:00:04.6]} 46... Qxe7 {[%clk 0:00:02.4]} 47. Rxe7 {[%clk 0:00:05.5]}
47... Bf8 {[%clk 0:00:01.9]} 48. Rc7 {[%clk 0:00:03.9]} 48... Rg7 {[%clk
0:00:01.7]} 49. d7 {[%clk 0:00:02.6]} 49... Be7 {[%clk 0:00:01.7]} 50. Rc8
{[%clk 0:00:02.9]} 50... Rgg8 {[%clk 0:00:02]} 51. Rxd8 {[%clk 0:00:03.4]} 51...
Rxd8 {[%clk 0:00:02.9]} 52. Nc7 {[%clk 0:00:04.2]} 52... Rg8 {[%clk 0:00:02]}
53. Ne6 {[%clk 0:00:04.8]} 53... Bd8 {[%clk 0:00:01.9]} 54. Rc1 {[%clk
0:00:05.1]} 54... g5 {[%clk 0:00:02.2]} 55. Rc8 {[%clk 0:00:05.6]} 55... Bf6
{[%clk 0:00:03.1]} 56. Rxg8+ {[%clk 0:00:05.8]} 56... Kxg8 {[%clk 0:00:04]} 57.
d8=Q+ {[%clk 0:00:06.6]} 57... Bxd8 {[%clk 0:00:04.9]} 58. Nxd8 {[%clk
0:00:07.4]} 1-0

[Event "Late-Titled-Tuesday-Blitz-September-19-2023"]
[Site "Chess.com"]
[Date "2023.09.19"]
[Round "2"]
[White "Fy_Rakotomaharo"]
[Black "infinitegiantkiller"]
[Result "1/2-1/2"]
[WhiteElo "2723"]
[BlackElo "2468"]
[TimeControl "180+1"]
[EndTime "14:17:56 PDT"]
[Termination "Game drawn by repetition"]

1. d4 {[%clk 0:02:53.3]} 1... Nf6 {[%clk 0:02:56.5]} 2. Nf3 {[%clk 0:02:53.6]}
2... e6 {[%clk 0:02:55.2]} 3. Bg5 {[%clk 0:02:53]} 3... h6 {[%clk 0:02:54.8]} 4.
Bh4 {[%clk 0:02:52.9]} 4... g5 {[%clk 0:02:54.6]} 5. Bg3 {[%clk 0:02:52.4]} 5...
Nh5 {[%clk 0:02:54.1]} 6. e3 {[%clk 0:02:43.7]} 6... Nxg3 {[%clk 0:02:53.8]} 7.
hxg3 {[%clk 0:02:43.7]} 7... Bg7 {[%clk 0:02:54.7]} 8. Bd3 {[%clk 0:02:42.5]}
8... b6 {[%clk 0:02:52.7]} 9. Nbd2 {[%clk 0:02:41.4]} 9... Bb7 {[%clk
0:02:53.1]} 10. Qe2 {[%clk 0:02:41.3]} 10... d6 {[%clk 0:02:53.4]} 11. O-O-O
{[%clk 0:02:40.4]} 11... Nd7 {[%clk 0:02:53.7]} 12. Ba6 {[%clk 0:02:40.5]} 12...
Qc8 {[%clk 0:02:53.4]} 13. Bxb7 {[%clk 0:02:40.4]} 13... Qxb7 {[%clk 0:02:54.3]}
14. e4 {[%clk 0:02:40.7]} 14... O-O-O {[%clk 0:02:54.4]} 15. c3 {[%clk
0:02:40.5]} 15... Kb8 {[%clk 0:02:53.3]} 16. g4 {[%clk 0:02:40.6]} 16... c5
{[%clk 0:02:51.5]} 17. Kb1 {[%clk 0:02:39.2]} 17... cxd4 {[%clk 0:02:50.7]} 18.
cxd4 {[%clk 0:02:40.1]} 18... Rc8 {[%clk 0:02:51]} 19. Rc1 {[%clk 0:02:32.1]}
19... Rxc1+ {[%clk 0:02:50.3]} 20. Rxc1 {[%clk 0:02:33]} 20... Rc8 {[%clk
0:02:50.1]} 21. Rxc8+ {[%clk 0:02:32.2]} 21... Qxc8 {[%clk 0:02:51]} 22. Qd3
{[%clk 0:02:26.9]} 22... Qc6 {[%clk 0:02:39.9]} 23. Ng1 {[%clk 0:02:17]} 23...
Qa4 {[%clk 0:02:04.2]} 24. Nb3 {[%clk 0:02:10.8]} 24... Qb4 {[%clk 0:02:04]} 25.
Nf3 {[%clk 0:02:05.4]} 25... Nf6 {[%clk 0:01:52.6]} 26. e5 {[%clk 0:01:54.4]}
26... dxe5 {[%clk 0:01:40.5]} 27. Nxe5 {[%clk 0:01:46.1]} 27... Qe1+ {[%clk
0:01:39.7]} 28. Nc1 {[%clk 0:01:46.7]} 28... Nd5 {[%clk 0:01:23.7]} 29. Nc6+
{[%clk 0:01:08.5]} 29... Kc7 {[%clk 0:00:49.9]} 30. Nxa7 {[%clk 0:01:07.8]}
30... Qxf2 {[%clk 0:00:44.5]} 31. Qc4+ {[%clk 0:01:03.8]} 31... Kb7 {[%clk
0:00:21.6]} 32. Nb5 {[%clk 0:01:03.3]} 32... Bf8 {[%clk 0:00:17.2]} 33. Qa4
{[%clk 0:00:38.5]} 33... f5 {[%clk 0:00:05.7]} 34. Qa7+ {[%clk 0:00:36.5]} 34...
Kc6 {[%clk 0:00:06.3]} 35. a4 {[%clk 0:00:36.9]} 35... Bd6 {[%clk 0:00:04]} 36.
Qa8+ {[%clk 0:00:32.6]} 36... Kd7 {[%clk 0:00:04.1]} 37. Qg8 {[%clk 0:00:14.4]}
37... fxg4 {[%clk 0:00:03.1]} 38. Qh7+ {[%clk 0:00:12.8]} 38... Be7 {[%clk
0:00:03.1]} 39. Nd3 {[%clk 0:00:10.6]} 39... Qf5 {[%clk 0:00:02.9]} 40. Qxf5
{[%clk 0:00:07.9]} 40... exf5 {[%clk 0:00:03.8]} 41. Ne5+ {[%clk 0:00:08.8]}
41... Ke6 {[%clk 0:00:04]} 42. Kc2 {[%clk 0:00:07.8]} 42... h5 {[%clk
0:00:04.3]} 43. Kd3 {[%clk 0:00:08.2]} 43... h4 {[%clk 0:00:04.8]} 44. Ke2
{[%clk 0:00:09.1]} 44... h3 {[%clk 0:00:05.1]} 45. gxh3 {[%clk 0:00:10]} 45...
gxh3 {[%clk 0:00:05.9]} 46. Kf2 {[%clk 0:00:10.9]} 46... g4 {[%clk 0:00:06.5]}
47. Kg3 {[%clk 0:00:11.4]} 47... Bd6 {[%clk 0:00:06.9]} 48. Nxd6 {[%clk
0:00:11.2]} 48... Kxd6 {[%clk 0:00:07.8]} 49. b3 {[%clk 0:00:11.2]} 49... f4+
{[%clk 0:00:07.3]} 50. Kh2 {[%clk 0:00:10.4]} 50... Ne3 {[%clk 0:00:06.5]} 51.
b4 {[%clk 0:00:09.9]} 51... Nf1+ {[%clk 0:00:06.9]} 52. Kg1 {[%clk 0:00:10.2]}
52... Ng3 {[%clk 0:00:07.3]} 53. a5 {[%clk 0:00:09.8]} 53... bxa5 {[%clk
0:00:07.8]} 54. bxa5 {[%clk 0:00:10.6]} 54... Ne2+ {[%clk 0:00:08.5]} 55. Kh1
{[%clk 0:00:10.4]} 55... Nxd4 {[%clk 0:00:09.4]} 56. a6 {[%clk 0:00:10.8]} 56...
Nc6 {[%clk 0:00:10.2]} 57. Nxg4 {[%clk 0:00:09.7]} 57... Kc7 {[%clk 0:00:09.4]}
58. Kh2 {[%clk 0:00:09.9]} 58... Kb6 {[%clk 0:00:09.1]} 59. Kxh3 {[%clk
0:00:10.8]} 59... Kxa6 {[%clk 0:00:09.7]} 60. Kg2 {[%clk 0:00:11.5]} 60... Ne5
{[%clk 0:00:09.3]} 61. Nxe5 {[%clk 0:00:11.6]} 61... Kb5 {[%clk 0:00:10]} 62.
Nf3 {[%clk 0:00:11.8]} 62... Kc4 {[%clk 0:00:10.9]} 63. Kh3 {[%clk 0:00:12.3]}
63... Kd5 {[%clk 0:00:11.8]} 64. Kg4 {[%clk 0:00:13.2]} 64... Ke4 {[%clk
0:00:12.7]} 65. Ng5+ {[%clk 0:00:13.2]} 65... Ke3 {[%clk 0:00:13.6]} 66. Nf3
{[%clk 0:00:14.1]} 66... Ke4 {[%clk 0:00:14]} 67. Ng5+ {[%clk 0:00:14.7]} 67...
Ke5 {[%clk 0:00:14.9]} 68. Nf3+ {[%clk 0:00:15.5]} 68... Ke4 {[%clk 0:00:15.5]}
1/2-1/2

[Event "Late-Titled-Tuesday-Blitz-September-19-2023"]
[Site "Chess.com"]
[Date "2023.09.19"]
[Round "2"]
[White "Slovak_fighter2000"]
[Black "farzadbfd"]
[Result "1-0"]
[WhiteElo "2454"]
[BlackElo "2689"]
[TimeControl "180+1"]
[EndTime "14:17:58 PDT"]
[Termination "Slovak_fighter2000 won by resignation"]

1. d4 {[%clk 0:03:00]} 1... Nf6 {[%clk 0:03:00.1]} 2. Nf3 {[%clk 0:03:00.6]}
2... e6 {[%clk 0:02:59.5]} 3. c4 {[%clk 0:03:00.5]} 3... d5 {[%clk 0:02:59.9]}
4. Nc3 {[%clk 0:02:59.9]} 4... Be7 {[%clk 0:02:59.8]} 5. g3 {[%clk 0:02:58.7]}
5... O-O {[%clk 0:03:00]} 6. Bg2 {[%clk 0:02:58.2]} 6... c6 {[%clk 0:03:00.4]}
7. Qd3 {[%clk 0:02:55.7]} 7... Nbd7 {[%clk 0:02:59]} 8. e4 {[%clk 0:02:54.2]}
8... dxe4 {[%clk 0:02:41.6]} 9. Nxe4 {[%clk 0:02:53.9]} 9... Nxe4 {[%clk
0:02:41.1]} 10. Qxe4 {[%clk 0:02:54.6]} 10... Bb4+ {[%clk 0:02:41.5]} 11. Bd2
{[%clk 0:02:54.2]} 11... Bxd2+ {[%clk 0:02:31.7]} 12. Nxd2 {[%clk 0:02:53.6]}
12... Qa5 {[%clk 0:02:25.9]} 13. Qe2 {[%clk 0:02:44.5]} 13... Qb6 {[%clk
0:02:17.2]} 14. Nf3 {[%clk 0:02:33.8]} 14... Qb4+ {[%clk 0:02:17.4]} 15. Kf1
{[%clk 0:02:29.3]} 15... b6 {[%clk 0:02:10.3]} 16. a3 {[%clk 0:02:13.3]} 16...
Qb3 {[%clk 0:01:38]} 17. Rc1 {[%clk 0:02:09.2]} 17... Ba6 {[%clk 0:01:37.7]} 18.
Qc2 {[%clk 0:02:05.1]} 18... Qxc2 {[%clk 0:01:07.7]} 19. Rxc2 {[%clk 0:02:05.9]}
19... Rfd8 {[%clk 0:01:07.5]} 20. Ke2 {[%clk 0:01:43.7]} 20... Rac8 {[%clk
0:00:50.4]} 21. Rhc1 {[%clk 0:01:35.6]} 21... f6 {[%clk 0:00:47.5]} 22. Ke1
{[%clk 0:01:31.8]} 22... Kf7 {[%clk 0:00:47]} 23. Bf1 {[%clk 0:01:25.2]} 23...
c5 {[%clk 0:00:39.9]} 24. dxc5 {[%clk 0:01:22.1]} 24... Nxc5 {[%clk 0:00:37.4]}
25. Rd1 {[%clk 0:01:11.7]} 25... e5 {[%clk 0:00:36.9]} 26. Rxd8 {[%clk
0:01:10.9]} 26... Rxd8 {[%clk 0:00:37]} 27. Rd2 {[%clk 0:01:08.3]} 27... Rxd2
{[%clk 0:00:26.2]} 28. Nxd2 {[%clk 0:00:55.2]} 28... f5 {[%clk 0:00:23.2]} 29.
b4 {[%clk 0:00:50.5]} 29... Ne6 {[%clk 0:00:17.6]} 30. Bd3 {[%clk 0:00:36]}
30... g6 {[%clk 0:00:17.5]} 31. Bb1 {[%clk 0:00:33.1]} 31... Nd4 {[%clk
0:00:17.6]} 32. Ba2 {[%clk 0:00:31.5]} 32... Kf6 {[%clk 0:00:18.1]} 33. h4
{[%clk 0:00:28.8]} 33... Nc2+ {[%clk 0:00:18.3]} 34. Ke2 {[%clk 0:00:19.8]}
34... Nxa3 {[%clk 0:00:18.6]} 35. Kd3 {[%clk 0:00:19.8]} 35... b5 {[%clk
0:00:18]} 36. c5 {[%clk 0:00:16.8]} 36... h6 {[%clk 0:00:06.5]} 37. Kc3 {[%clk
0:00:15.3]} 37... g5 {[%clk 0:00:06.9]} 38. hxg5+ {[%clk 0:00:15]} 38... hxg5
{[%clk 0:00:07.2]} 39. Kb2 {[%clk 0:00:13]} 39... Nc4+ {[%clk 0:00:07.3]} 40.
Nxc4 {[%clk 0:00:13.1]} 40... bxc4 {[%clk 0:00:08.2]} 41. Kc3 {[%clk 0:00:13.5]}
41... e4 {[%clk 0:00:06.3]} 42. Bxc4 {[%clk 0:00:13.2]} 42... Bc8 {[%clk
0:00:06.4]} 43. Kd4 {[%clk 0:00:11.5]} 43... Bb7 {[%clk 0:00:06]} 44. b5 {[%clk
0:00:10.6]} 44... f4 {[%clk 0:00:06.1]} 45. gxf4 {[%clk 0:00:10.4]} 45... gxf4
{[%clk 0:00:06.3]} 46. c6 {[%clk 0:00:09.7]} 46... Bc8 {[%clk 0:00:05]} 47. Kxe4
{[%clk 0:00:09.7]} 47... Kg5 {[%clk 0:00:04.2]} 48. Ke5 {[%clk 0:00:07.6]} 48...
f3 {[%clk 0:00:04.3]} 49. Be6 {[%clk 0:00:07.1]} 49... Bxe6 {[%clk 0:00:01.5]}
50. Kxe6 {[%clk 0:00:07.8]} 50... Kh4 {[%clk 0:00:02.4]} 51. c7 {[%clk 0:00:08]}
51... Kh3 {[%clk 0:00:03.3]} 52. c8=Q {[%clk 0:00:08.8]} 52... Kg2 {[%clk
0:00:04.2]} 53. Qc2 {[%clk 0:00:08.5]} 53... Kf1 {[%clk 0:00:02.9]} 54. Qd2
{[%clk 0:00:08]} 54... Kg2 {[%clk 0:00:03.2]} 55. Qe3 {[%clk 0:00:08.2]} 55...
Kf1 {[%clk 0:00:02.8]} 56. Qxf3 {[%clk 0:00:08.4]} 1-0